lending/lending_fUSD_20241228
["ID","MTS","AMOUNT","RATE_DAILY","PERIOD"]
[346899784,1735351832417,-194.31746589,0.00010999,2]
[346899787,1735351832428,-305.68253411,0.00010999,2]
[346899789,1735351832437,-616.56113089,0.00010999,2]
[346899791,1735351832448,-495.07637835,0.00010999,2]
[346899793,1735351832459,-30.86249076,0.00010999,2]
[346899795,1735351832468,-500.0,0.00010999,2]
[346899797,1735351832478,-589.38,0.00010999,2]
[346899799,1735351832486,-77.39360966,0.00010999,2]
[346899802,1735351832505,-422.60639034,0.00010999,2]
[346899804,1735351832514,-202.49790212,0.00010999,2]
[346899807,1735351832539,-297.50209788,0.00010999,2]
[346899809,1735351832548,-890.57,0.00010999,2]
[346899811,1735351832558,-500.0,0.00010999,2]
[346899813,1735351832567,-501.4,0.00010999,2]
[346899815,1735351832579,-512.82,0.00010999,2]
[346899817,1735351832588,-658.2,0.00010999,2]
[346899819,1735351832598,-500.0,0.00010999,2]
[346899821,1735351832608,-972.44,0.00010999,2]
[346899823,1735351832618,-500.0,0.00010999,2]
[346899825,1735351832627,-765.2,0.00010999,2]
[346899827,1735351832636,-500.0,0.00010999,2]
[346899829,1735351832645,-500.0,0.00010999,2]
[346899831,1735351832654,-500.0,0.00010999,2]
[346899833,1735351832664,-531.85,0.00010999,2]
[346899835,1735351832673,-588.18067277,0.00010999,2]
[346899880,1735351837865,-368.29,0.00010999,2]
[346899881,1735351837875,-3129.3250036,0.00010999,2]
[346899882,1735351837886,-453.73432363,0.00010999,2]
[346899883,1735351837896,-500.0,0.00010999,2]
[346899884,1735351837905,-500.0,0.00010999,2]
[346899885,1735351837914,-490.26567637,0.00010999,2]
[346899886,1735351837997,-9.73432363,0.00010999,2]
[346899887,1735351838008,-500.0,0.00010999,2]
[346899888,1735351838017,-383.01739155,0.00010999,2]
[346899889,1735351838029,-116.98260845,0.00010999,2]
[346899890,1735351838038,-583.68529765,0.00010999,2]
[346899891,1735351838048,-8255.4320939,0.00011,2]
[346899892,1735351838059,-465.401043,0.00011,2]
[346899893,1735351838142,-361.37125032,0.00011,2]
[346899894,1735351838153,-735.15365519,0.00011,2]
[346899911,1735351839806,-2155.0,0.00011,2]
[346899912,1735351839979,-673.28091224,0.00011,2]
[346899913,1735351839991,-262.520001,0.00011,2]
[346899914,1735351840002,-1362.39004,0.00011,2]
[346899915,1735351840013,-6908.45457422,0.00011,2]
[346899916,1735351840023,-85071.6838801,0.00011,2]
[346899917,1735351840131,-499.63985511,0.00011,2]
[346899918,1735351840142,-500.0,0.00011,2]
[346899919,1735351840153,-1272.5779999,0.00011,2]
[346899920,1735351840165,-1917.68892635,0.00011,2]
[346899921,1735351840177,-6008.27492,0.00011,2]
[346899922,1735351840188,-854.04481061,0.00011,2]
[346900001,1735351842825,-1192.20706,0.00011,2]
[346900005,1735351842966,-30579.78,0.00011,2]
[346900006,1735351842978,-365.7149734,0.00011,2]
[346900007,1735351842989,-830.38062725,0.00011,2]
[346900008,1735351843001,-1208.10939751,0.00011,2]
[346900009,1735351843013,-1273.949995,0.00011,2]
[346900010,1735351843024,-1786.46013025,0.00011,2]
[346900011,1735351843136,-4836.0,0.00011,2]
[346900012,1735351843147,-1247.33195353,0.00011,2]
[346900013,1735351843159,-989.96766037,0.00011,2]
[346900014,1735351843170,-1104.77514956,0.00011,2]
[346900015,1735351843181,-416.6630746,0.00011,2]
[346900016,1735351843194,-47760.0,0.00011,2]
[346900017,1735351843205,-429.26652671,0.00011,2]
[346900018,1735351843216,-1845.66805756,0.00011,2]
[346900019,1735351843282,-491471.36043019,0.00011,2]
[346900068,1735351845885,-4538.454572,0.00011,2]
[346900069,1735351845896,-831.16660812,0.0001107,2]
[346900070,1735351845905,-239.42,0.00011094,2]
[346900071,1735351845915,-741.43,0.00011096,2]
[346900072,1735351845925,-2277.36300612,0.00011138,2]
[346900073,1735351845934,-30000.0,0.00011156,2]
[346900074,1735351845944,-169.98,0.00011169,2]
[346900075,1735351845954,-977.72,0.000112,2]
[346900076,1735351845964,-588.22,0.000112,2]
[346900077,1735351845974,-150.86,0.000112,2]
[346900078,1735351845984,-777.42,0.000112,2]
[346900079,1735351845993,-977.72,0.000112,2]
[346900080,1735351846003,-304.77,0.000112,2]
[346900081,1735351846012,-538.73,0.000112,2]
[346900082,1735351846022,-300.0,0.000112,2]
[346900083,1735351846031,-877.75,0.000112,2]
[346900084,1735351846042,-300.37,0.000112,2]
[346900085,1735351846052,-154.28,0.000112,2]
[346900086,1735351846061,-429.2501615,0.00011255,2]
[346900087,1735351846071,-500.0,0.00011273,2]
[346900088,1735351846080,-611.25,0.00011273,2]
[346900089,1735351846089,-500.0,0.00011273,2]
[346900090,1735351846099,-829.74,0.00011273,2]
[346900091,1735351846108,-500.0,0.00011273,2]
[346900092,1735351846118,-1142.5,0.00011273,2]
[346900093,1735351846127,-500.0,0.00011273,2]
[346900094,1735351846136,-589.38,0.00011273,2]
[346900095,1735351846146,-500.0,0.00011273,2]
[346900096,1735351846155,-890.57,0.00011273,2]
[346900097,1735351846164,-500.0,0.00011273,2]
[346900098,1735351846174,-501.4,0.00011273,2]
[346900099,1735351846183,-658.2,0.00011273,2]
[346900100,1735351846193,-500.0,0.00011273,2]
[346900101,1735351846203,-972.44,0.00011273,2]
[346900102,1735351846212,-500.0,0.00011273,2]
[346900103,1735351846222,-765.2,0.00011273,2]
[346900104,1735351846231,-500.0,0.00011273,2]
[346900105,1735351846240,-500.0,0.00011273,2]
[346900106,1735351846249,-2021.18965226,0.00011273,2]
[346900107,1735351846261,-2150.05034774,0.00011273,2]
[346900108,1735351846271,-500.0,0.00011273,2]
[346900109,1735351846280,-500.0,0.00011273,2]
[346900110,1735351846289,-500.0,0.00011273,2]
[346900111,1735351846300,-500.0,0.00011273,2]
[346900112,1735351846310,-500.0,0.00011273,2]
[346900113,1735351846319,-17201.60845555,0.00011288,2]
[346900114,1735351846329,-24740.4016,0.00011344,2]
[346900115,1735351846338,-199.6973,0.00011345,2]
[346900116,1735351846347,-436.61,0.0001137,2]
[346900117,1735351846357,-150.0,0.0001137,2]
[346900118,1735351846367,-301.04,0.0001137,2]
[346900120,1735351846376,-150.0,0.0001137,2]
[346900121,1735351846385,-978.15,0.0001137,2]
[346900122,1735351846395,-150.0,0.0001137,2]
[346900123,1735351846404,-436.61,0.0001137,2]
[346900125,1735351846414,-150.0,0.0001137,2]
[346900126,1735351846423,-150.0,0.0001137,2]
[346900127,1735351846433,-978.15,0.0001137,2]
[346900128,1735351846442,-150.0,0.0001137,2]
[346900129,1735351846451,-978.15,0.0001137,2]
[346900130,1735351846461,-436.61,0.0001137,2]
[346900131,1735351846470,-150.0,0.0001137,2]
[346900132,1735351846479,-150.0,0.0001137,2]
[346900133,1735351846488,-150.0,0.0001137,2]
[346900134,1735351846498,-150.0,0.0001137,2]
[346900135,1735351846507,-150.0,0.0001137,2]
[346900136,1735351846517,-436.61,0.0001137,2]
[346900137,1735351846526,-150.0,0.0001137,2]
[346900138,1735351846540,-978.15,0.0001137,2]
[346900139,1735351846551,-978.15,0.0001137,2]
[346900140,1735351846560,-150.0,0.0001137,2]
[346900141,1735351846570,-436.61,0.0001137,2]
[346900142,1735351846580,-150.0,0.0001137,2]
[346900143,1735351846590,-646.22,0.0001137,2]
[346900144,1735351846599,-436.61,0.0001137,2]
[346900145,1735351846609,-436.61,0.0001137,2]
[346900146,1735351846619,-436.61,0.0001137,2]
[346900147,1735351846628,-436.61,0.0001137,2]
[346900148,1735351846638,-500.0,0.0001144,2]
[346900149,1735351846647,-500.0,0.00011444,2]
[346900150,1735351846658,-500.0,0.00011444,2]
[346900151,1735351846668,-729.43,0.00011444,2]
[346900152,1735351846677,-520.05586528,0.00011444,2]
[346900153,1735351846688,-1585.04,0.00011444,2]
[346900154,1735351846697,-500.0,0.00011444,2]
[346900155,1735351846708,-358.79239127,0.00011444,2]
[346900156,1735351846720,-141.20760873,0.00011444,2]
[346900157,1735351846730,-500.0,0.00011444,2]
[346900158,1735351846739,-435.04183785,0.00011444,2]
[346900159,1735351846750,-64.95816215,0.00011444,2]
[346900160,1735351846759,-201.67962185,0.00011444,2]
[346900161,1735351846771,-298.32037815,0.00011444,2]
[346900162,1735351846780,-500.0,0.00011444,2]
[346900163,1735351846791,-1429.16325458,0.00011444,2]
[346900164,1735351846804,-111.60674542,0.00011444,2]
[346900165,1735351846814,-223.73828226,0.00011444,2]
[346900166,1735351846848,-276.26171774,0.00011444,2]
[346900167,1735351846857,-225.50934926,0.00011444,2]
[346900168,1735351846869,-307.91866576,0.00011444,2]
[346900169,1735351846881,-24.44198498,0.00011444,2]
[346900170,1735351846890,-479.76258949,0.00011444,2]
[346900171,1735351846902,-20.23741051,0.00011444,2]
[346900172,1735351846911,-387.58528577,0.00011444,2]
[346900173,1735351846928,-112.41471423,0.00011444,2]
[346900174,1735351846938,-629.36,0.00011444,2]
[346900175,1735351846947,-971.5,0.00011444,2]
[346900176,1735351846957,-211.72273064,0.00011444,2]
[346900177,1735351846966,-500.0,0.00011444,2]
[346900178,1735351846976,-567.34,0.00011444,2]
[346900179,1735351846985,-500.0,0.00011444,2]
[346900180,1735351846995,-557.78,0.00011444,2]
[346900181,1735351847005,-500.0,0.00011444,2]
[346900182,1735351847014,-538.994511,0.00011444,2]
[346900183,1735351847025,-520.78005536,0.00011444,2]
[346900184,1735351847034,-612.72,0.00011444,2]
[346900185,1735351847044,-500.0,0.00011444,2]
[346900186,1735351847053,-2683.44,0.00011444,2]
[346900187,1735351847062,-3873.9248,0.00011444,2]
[346900188,1735351847073,-14854.2182,0.00011445,2]
[346900189,1735351847083,-178.48625171,0.00011445,2]
[346900190,1735351847093,-4742.6161,0.00011447,2]
[346900191,1735351847103,-2554.91,0.00011507,2]
[346900192,1735351847112,-500.0,0.00011544,2]
[346900193,1735351847123,-500.0,0.00011544,2]
[346900194,1735351847324,-500.0,0.00011544,2]
[346900195,1735351847334,-598.28,0.00011544,2]
[346900196,1735351847344,-1000.0,0.00011544,2]
[346900197,1735351847353,-500.0,0.00011544,2]
[346900198,1735351847362,-505.32781977,0.00011544,2]
[346900199,1735351847372,-615.24,0.00011544,2]
[346900200,1735351847381,-500.0,0.00011544,2]
[346900201,1735351847390,-500.0,0.00011544,2]
[346900202,1735351847400,-500.0,0.00011544,2]
[346900203,1735351847409,-2074.85,0.00011544,2]
[346900204,1735351847419,-772.433725,0.00011544,2]
[346900205,1735351847428,-753.922174,0.00011544,2]
[346900206,1735351847438,-150.24139654,0.00011544,2]
[346900207,1735351847447,-500.0,0.00011544,2]
[346900208,1735351847457,-500.0,0.00011544,2]
[346900209,1735351847466,-500.0,0.00011544,2]
[346900210,1735351847476,-555.7091112,0.00011544,2]
[346900211,1735351847486,-500.0,0.00011544,2]
[346900212,1735351847496,-500.0,0.00011544,2]
[346900213,1735351847505,-500.0,0.00011544,2]
[346900214,1735351847515,-500.0,0.00011544,2]
[346900215,1735351847525,-500.0,0.00011544,2]
[346900216,1735351847536,-1043.09,0.00011544,2]
[346900217,1735351847546,-500.0,0.00011544,2]
[346900218,1735351847555,-500.0,0.00011544,2]
[346900219,1735351847565,-500.0,0.00011544,2]
[346900220,1735351847574,-500.0,0.00011544,2]
[346900221,1735351847586,-500.0,0.00011544,2]
[346900222,1735351847595,-500.0,0.00011544,2]
[346900223,1735351847605,-500.0,0.00011544,2]
[346900224,1735351847615,-500.0,0.00011544,2]
[346900225,1735351847625,-500.0,0.00011544,2]
[346900226,1735351847634,-500.0,0.00011544,2]
[346900227,1735351847644,-500.0,0.00011544,2]
[346900228,1735351847653,-500.0,0.00011544,2]
[346900229,1735351847662,-500.0,0.00011544,2]
[346900230,1735351847670,-570.78,0.00011544,2]
[346900231,1735351847680,-495.88603905,0.00011544,2]
[346900232,1735351847689,-336.77,0.00011544,2]
[346900233,1735351847698,-500.0,0.00011544,2]
[346900234,1735351847708,-500.0,0.00011544,2]
[346900235,1735351847717,-500.0,0.00011544,2]
[346900236,1735351847726,-500.0,0.00011544,2]
[346900237,1735351847736,-278.75928569,0.00011544,2]
[346900238,1735351847745,-500.0,0.00011545,2]
[346900239,1735351847755,-500.0,0.00011545,2]
[346900240,1735351847764,-235.94908175,0.00011545,2]
[346900241,1735351847773,-500.0,0.00011545,2]
[346900242,1735351847782,-2026.75,0.00011546,2]
[346900243,1735351847791,-163.20482852,0.00011546,2]
[346900244,1735351847801,-500.0,0.00011547,2]
[346900245,1735351847811,-611.25,0.00011547,2]
[346900246,1735351847821,-500.0,0.00011547,2]
[346900247,1735351847830,-829.74,0.00011547,2]
[346900248,1735351847839,-500.0,0.00011547,2]
[346900249,1735351847849,-1142.5,0.00011547,2]
[346900250,1735351847858,-500.0,0.00011547,2]
[346900251,1735351847868,-589.38,0.00011547,2]
[346900252,1735351847878,-500.0,0.00011547,2]
[346900253,1735351847887,-890.57,0.00011547,2]
[346900254,1735351847896,-500.0,0.00011547,2]
[346900255,1735351847906,-501.4,0.00011547,2]
[346900256,1735351847916,-658.2,0.00011547,2]
[346900257,1735351847926,-500.0,0.00011547,2]
[346900258,1735351847935,-972.44,0.00011547,2]
[346900259,1735351847944,-500.0,0.00011547,2]
[346900260,1735351847953,-500.0,0.00011547,2]
[346900261,1735351847963,-765.2,0.00011547,2]
[346900262,1735351847974,-500.0,0.00011547,2]
[346900263,1735351847983,-4171.24,0.00011547,2]
[346900264,1735351847994,-500.0,0.00011547,2]
[346900265,1735351848003,-500.0,0.00011547,2]
[346900266,1735351848012,-500.0,0.00011547,2]
[346900267,1735351848022,-500.0,0.00011547,2]
[346900268,1735351848031,-500.0,0.00011547,2]
[346900269,1735351848041,-200.0,0.00011547,2]
[346900270,1735351848050,-150.636,0.0001159,2]
[346900271,1735351848060,-251.85,0.00011664,2]
[346900272,1735351848070,-831.16660812,0.00011668,2]
[346900273,1735351848080,-500.0,0.00011718,2]
[346900274,1735351848090,-500.0,0.00011718,2]
[346900275,1735351848099,-729.43,0.00011718,2]
[346900276,1735351848109,-1585.04,0.00011718,2]
[346900277,1735351848119,-500.0,0.00011718,2]
[346900278,1735351848129,-213.74010267,0.00011718,2]
[346900279,1735351848138,-500.0,0.00011718,2]
[346900280,1735351848147,-500.0,0.00011718,2]
[346900281,1735351848157,-500.0,0.00011718,2]
[346900282,1735351848166,-500.0,0.00011718,2]
[346900283,1735351848176,-1540.77,0.00011718,2]
[346900284,1735351848186,-500.0,0.00011718,2]
[346900285,1735351848196,-557.87,0.00011718,2]
[346900286,1735351848205,-500.0,0.00011718,2]
[346900287,1735351848215,-500.0,0.00011718,2]
[346900288,1735351848225,-629.36,0.00011718,2]
[346900289,1735351848233,-971.5,0.00011718,2]
[346900290,1735351848243,-500.0,0.00011718,2]
[346900291,1735351848253,-567.34,0.00011718,2]
[346900292,1735351848263,-500.0,0.00011718,2]
[346900293,1735351848273,-557.78,0.00011718,2]
[346900294,1735351848282,-500.0,0.00011718,2]
[346900295,1735351848293,-612.72,0.00011718,2]
[346900296,1735351848302,-500.0,0.00011718,2]
[346900297,1735351848312,-2683.44,0.00011718,2]
[346900298,1735351848322,-1000.0,0.00011723,2]
[346900299,1735351848331,-178.48625167,0.00011809,2]
[346900300,1735351848340,-500.0,0.00011817,2]
[346900301,1735351848350,-500.0,0.00011818,2]
[346900302,1735351848359,-580.65854311,0.00011818,2]
[346900303,1735351848368,-500.0,0.00011818,2]
[346900304,1735351848378,-598.28,0.00011818,2]
[346900305,1735351848387,-500.0,0.00011818,2]
[346900306,1735351848397,-615.24,0.00011818,2]
[346900307,1735351848407,-500.0,0.00011818,2]
[346900308,1735351848416,-500.0,0.00011818,2]
[346900309,1735351848426,-500.0,0.00011818,2]
[346900310,1735351848435,-2074.85,0.00011818,2]
[346900311,1735351848444,-772.433725,0.00011818,2]
[346900312,1735351848454,-753.922174,0.00011818,2]
[346900313,1735351848463,-500.0,0.00011818,2]
[346900314,1735351848472,-500.0,0.00011818,2]
[346900315,1735351848481,-500.0,0.00011818,2]
[346900316,1735351848492,-500.0,0.00011818,2]
[346900317,1735351848501,-500.0,0.00011818,2]
[346900318,1735351848511,-282.99529322,0.00011818,2]
[346900319,1735351848520,-500.0,0.00011818,2]
[346900320,1735351848530,-500.0,0.00011818,2]
[346900321,1735351848541,-1043.09,0.00011818,2]
[346900322,1735351848551,-500.0,0.00011818,2]
[346900323,1735351848560,-624.04775157,0.00011818,2]
[346900324,1735351848570,-500.0,0.00011818,2]
[346900325,1735351848580,-500.0,0.00011818,2]
[346900326,1735351848590,-500.0,0.00011818,2]
[346900327,1735351848600,-500.0,0.00011818,2]
[346900328,1735351848610,-500.0,0.00011818,2]
[346900329,1735351848620,-500.0,0.00011818,2]
[346900330,1735351848630,-500.0,0.00011818,2]
[346900331,1735351848640,-500.0,0.00011818,2]
[346900332,1735351848650,-500.0,0.00011818,2]
[346900333,1735351848659,-500.0,0.00011818,2]
[346900334,1735351848670,-500.0,0.00011818,2]
[346900335,1735351848679,-570.78,0.00011818,2]
[346900336,1735351848689,-500.0,0.00011818,2]
[346900337,1735351848698,-500.0,0.00011818,2]
[346900338,1735351848707,-500.0,0.00011818,2]
[346900339,1735351848717,-500.0,0.00011818,2]
[346900340,1735351848726,-500.0,0.00011819,2]
[346900341,1735351848736,-630.00910403,0.00011819,2]
[346900342,1735351848746,-500.0,0.00011819,2]
[346900343,1735351848755,-2026.75,0.0001182,2]
[346900344,1735351848764,-500.0,0.00011821,2]
[346900345,1735351848774,-611.25,0.00011821,2]
[346900346,1735351848782,-500.0,0.00011821,2]
[346900347,1735351848792,-829.74,0.00011821,2]
[346900348,1735351848801,-500.0,0.00011821,2]
[346900349,1735351848811,-1142.5,0.00011821,2]
[346900350,1735351848820,-500.0,0.00011821,2]
[346900351,1735351848830,-589.38,0.00011821,2]
[346900352,1735351848840,-500.0,0.00011821,2]
[346900353,1735351848849,-890.57,0.00011821,2]
[346900354,1735351848858,-500.0,0.00011821,2]
[346900355,1735351848869,-501.4,0.00011821,2]
[346900356,1735351848879,-658.2,0.00011821,2]
[346900357,1735351848888,-500.0,0.00011821,2]
[346900358,1735351848897,-972.44,0.00011821,2]
[346900359,1735351848907,-500.0,0.00011821,2]
[346900360,1735351848916,-500.0,0.00011821,2]
[346900361,1735351848925,-765.2,0.00011821,2]
[346900362,1735351848935,-500.0,0.00011821,2]
[346900363,1735351848944,-4171.24,0.00011821,2]
[346900364,1735351848954,-500.0,0.00011821,2]
[346900365,1735351848964,-500.0,0.00011821,2]
[346900366,1735351848974,-500.0,0.00011821,2]
[346900367,1735351848984,-500.0,0.00011821,2]
[346900368,1735351848995,-500.0,0.00011821,2]
[346900369,1735351849004,-5520.1185,0.0001185,2]
[346900370,1735351849014,-500.0,0.0001195,2]
[346900371,1735351849024,-553.06,0.0001195,2]
[346900372,1735351849034,-500.0,0.0001195,2]
[346900373,1735351849044,-1494.21,0.0001195,2]
[346900374,1735351849053,-1099.87,0.0001195,2]
[346900375,1735351849063,-511.06,0.0001195,2]
[346900376,1735351849073,-2764.09,0.0001195,2]
[346900377,1735351849083,-22174.83155477,0.0001195,2]
[346900378,1735351849092,-420.0,0.00011978,2]
[346900379,1735351849101,-500.0,0.00011992,2]
[346900380,1735351849111,-500.0,0.00011992,2]
[346900381,1735351849121,-729.43,0.00011992,2]
[346900382,1735351849130,-1585.04,0.00011992,2]
[346900383,1735351849140,-500.0,0.00011992,2]
[346900384,1735351849150,-500.0,0.00011992,2]
[346900385,1735351849160,-500.0,0.00011992,2]
[346900386,1735351849169,-500.0,0.00011992,2]
[346900387,1735351849179,-500.0,0.00011992,2]
[346900388,1735351849188,-1540.77,0.00011992,2]
[346900389,1735351849197,-500.0,0.00011992,2]
[346900390,1735351849207,-557.87,0.00011992,2]
[346900391,1735351849217,-500.0,0.00011992,2]
[346900392,1735351849226,-500.0,0.00011992,2]
[346900393,1735351849235,-629.36,0.00011992,2]
[346900394,1735351849245,-971.5,0.00011992,2]
[346900395,1735351849254,-500.0,0.00011992,2]
[346900396,1735351849264,-567.34,0.00011992,2]
[346900397,1735351849274,-500.0,0.00011992,2]
[346900398,1735351849285,-557.78,0.00011992,2]
[346900399,1735351849294,-500.0,0.00011992,2]
[346900400,1735351849305,-612.72,0.00011992,2]
[346900401,1735351849315,-500.0,0.00011992,2]
[346900402,1735351849324,-2683.44,0.00011992,2]
[346900403,1735351849334,-5000.0,0.00011995,2]
[346900404,1735351849343,-9500.0,0.00012,2]
[346900405,1735351849353,-500.0,0.0001206,2]
[346900406,1735351849363,-1372.0,0.00012078,2]
[346900407,1735351849372,-500.0,0.00012091,2]
[346900408,1735351849382,-500.0,0.00012092,2]
[346900409,1735351849392,-500.0,0.00012092,2]
[346900410,1735351849402,-598.28,0.00012092,2]
[346900411,1735351849410,-500.0,0.00012092,2]
[346900412,1735351849420,-615.24,0.00012092,2]
[346900413,1735351849430,-500.0,0.00012092,2]
[346900414,1735351849439,-500.0,0.00012092,2]
[346900415,1735351849449,-500.0,0.00012092,2]
[346900416,1735351849459,-2074.85,0.00012092,2]
[346900417,1735351849469,-772.433725,0.00012092,2]
[346900418,1735351849478,-753.922174,0.00012092,2]
[346900419,1735351849488,-500.0,0.00012092,2]
[346900420,1735351849497,-500.0,0.00012092,2]
[346900421,1735351849507,-500.0,0.00012092,2]
[346900422,1735351849517,-500.0,0.00012092,2]
[346900423,1735351849526,-500.0,0.00012092,2]
[346900424,1735351849539,-627.24523047,0.00012092,2]
[346900425,1735351849549,-500.0,0.00012092,2]
[346900426,1735351849558,-1043.09,0.00012092,2]
[346900427,1735351849568,-500.0,0.00012092,2]
[346900428,1735351849577,-500.0,0.00012092,2]
[346900429,1735351849586,-500.0,0.00012092,2]
[346900430,1735351849596,-500.0,0.00012092,2]
[346900431,1735351849605,-500.0,0.00012092,2]
[346900432,1735351849615,-166.26637582,0.00012092,2]
[346900433,1735351849625,-500.0,0.00012092,2]
[346900434,1735351849634,-500.0,0.00012092,2]
[346900435,1735351849644,-399.63991749,0.00012092,2]
[346900436,1735351849653,-500.0,0.00012092,2]
[346900437,1735351849663,-565.40984291,0.00012092,2]
[346900438,1735351849672,-500.0,0.00012092,2]
[346900439,1735351849681,-570.78,0.00012092,2]
[346900440,1735351849691,-500.0,0.00012092,2]
[346900441,1735351849700,-500.0,0.00012092,2]
[346900442,1735351849712,-500.0,0.00012092,2]
[346900443,1735351849721,-500.0,0.00012092,2]
[346900444,1735351849730,-500.0,0.00012093,2]
[346900445,1735351849740,-308.88228397,0.00012093,2]
[346900446,1735351849749,-2026.75,0.00012094,2]
[346900447,1735351849759,-500.0,0.00012095,2]
[346900448,1735351849768,-611.25,0.00012095,2]
[346900449,1735351849777,-500.0,0.00012095,2]
[346900450,1735351849786,-829.74,0.00012095,2]
[346900451,1735351849796,-500.0,0.00012095,2]
[346900452,1735351849805,-1142.5,0.00012095,2]
[346900453,1735351849815,-500.0,0.00012095,2]
[346900454,1735351849824,-589.38,0.00012095,2]
[346900455,1735351849833,-500.0,0.00012095,2]
[346900456,1735351849842,-890.57,0.00012095,2]
[346900458,1735351849852,-500.0,0.00012095,2]
[346900459,1735351849862,-501.4,0.00012095,2]
[346900460,1735351849872,-658.2,0.00012095,2]
[346900461,1735351849882,-972.44,0.00012095,2]
[346900462,1735351849891,-500.0,0.00012095,2]
[346900463,1735351849900,-500.0,0.00012095,2]
[346900464,1735351849911,-765.2,0.00012095,2]
[346900465,1735351849920,-500.0,0.00012095,2]
[346900466,1735351849931,-4171.24,0.00012095,2]
[346900467,1735351849940,-500.0,0.00012095,2]
[346900468,1735351849950,-500.0,0.00012095,2]
[346900469,1735351849960,-500.0,0.00012095,2]
[346900470,1735351849970,-500.0,0.00012095,2]
[346900471,1735351849980,-500.0,0.00012095,2]
[346900472,1735351849990,-497.303,0.0001213,2]
[346900473,1735351849999,-178.48625167,0.00012173,2]
[346900474,1735351850008,-566.08,0.00012192,2]
[346900475,1735351850018,-500.0,0.00012224,2]
[346900476,1735351850028,-553.06,0.00012224,2]
[346900477,1735351850037,-500.0,0.00012224,2]
[346900478,1735351850047,-1494.21,0.00012224,2]
[346900479,1735351850057,-1099.87,0.00012224,2]
[346900480,1735351850067,-2764.09,0.00012224,2]
[346900481,1735351850076,-500.0,0.00012266,2]
[346900482,1735351850086,-500.0,0.00012266,2]
[346900483,1735351850095,-729.43,0.00012266,2]
[346900484,1735351850104,-1585.04,0.00012266,2]
[346900485,1735351850114,-500.0,0.00012266,2]
[346900486,1735351850124,-500.0,0.00012266,2]
[346900487,1735351850134,-500.0,0.00012266,2]
[346900488,1735351850143,-500.0,0.00012266,2]
[346900489,1735351850152,-500.0,0.00012266,2]
[346900490,1735351850162,-1540.77,0.00012266,2]
[346900491,1735351850171,-500.0,0.00012266,2]
[346900492,1735351850181,-557.87,0.00012266,2]
[346900493,1735351850191,-500.0,0.00012266,2]
[346900494,1735351850200,-500.0,0.00012266,2]
[346900495,1735351850210,-629.36,0.00012266,2]
[346900496,1735351850219,-971.5,0.00012266,2]
[346900497,1735351850228,-500.0,0.00012266,2]
[346900498,1735351850238,-567.34,0.00012266,2]
[346900499,1735351850247,-425.50088131,0.00012266,2]
[346900500,1735351850257,-557.78,0.00012266,2]
[346900501,1735351850267,-500.0,0.00012266,2]
[346900502,1735351850277,-612.72,0.00012266,2]